bitfinex-derivatives/quotes_BNBF0:USTF0_20251010
["timestamp","ask_amount","ask_price","bid_price","bid_amount"]
[1760110592072,1.9536369,1219.8,1214.3,0.54192058]
[1760110592271,1.9536369,1219.8,1213.7,0.60387684]
[1760110592477,1.9536369,1219.4,1213.8,0.54192658]
[1760110592673,1.9536369,1219.4,1213.3,0.60387684]
[1760110592876,1.9536369,1219.4,1213.4,0.74318904]
[1760110593081,1.9536369,1219.4,1213.3,0.60387684]
[1760110593082,1.9536369,1219.4,1213.5,0.54203899]
[1760110593381,1.9536369,1218.4,1213.1,0.60387684]
[1760110593678,1.9536369,1218.4,1211.3,2.7698819]
[1760110593679,1.9536369,1218.4,1213.2,0.54221497]
[1760110593978,1.9536369,1218.5,1212.0,0.60387684]
[1760110594173,1.9536369,1218.5,1212.1,0.5425921]
[1760110594472,1.9536369,1217.8,1212.2,0.5425921]
[1760110594674,1.9536369,1217.8,1212.3,0.5425921]
[1760110594872,1.9536369,1217.8,1212.4,0.5425921]
[1760110595077,1.9536369,1218.2,1211.7,0.60387684]
[1760110595273,1.9536369,1218.2,1211.8,1.34774629]
[1760110595475,1.9536369,1218.3,1211.9,0.54251117]
[1760110595678,1.9536369,1218.2,1212.3,0.20135828]
[1760110595879,1.9536369,1218.2,1212.4,0.54251117]
[1760110596081,1.9536369,1218.2,1212.5,0.54251117]
[1760110596279,1.9536369,1218.2,1211.9,0.60387684]
[1760110596475,1.9536369,1218.2,1212.0,0.54235828]
[1760110596678,1.9536369,1217.9,1212.1,0.54235828]
[1760110596876,1.9536369,1217.9,1212.2,0.54235828]
[1760110597076,1.9536369,1217.9,1211.6,0.60387684]
[1760110597278,1.9536369,1217.2,1211.7,0.54235496]
[1760110597475,1.9536369,1217.2,1211.1,0.60387684]
[1760110597678,1.9536369,1217.2,1211.2,0.74380921]
[1760110597878,1.9536369,1217.3,1211.3,0.54244828]
[1760110598081,1.9536369,1217.3,1211.4,0.54244828]
[1760110598279,1.9536369,1217.5,1211.5,0.54244828]
[1760110598480,1.9536369,1217.4,1211.6,0.54244828]
[1760110598675,1.9536369,1217.4,1211.7,0.54244828]
[1760110598876,1.9536369,1217.4,1211.8,0.54244828]
[1760110599081,4.6887286,1218.0,1211.9,0.54244828]
[1760110599278,4.6887286,1218.0,1211.7,0.60387684]
[1760110599279,4.6887286,1218.0,1212.0,0.54244828]
[1760110599484,4.6887286,1218.0,1211.6,0.60387684]
[1760110599485,1.9536369,1217.8,1211.6,0.60387684]
[1760110599682,1.9536369,1217.8,1211.7,0.54192966]
[1760110599879,1.9536369,1217.8,1210.9,0.60387684]
[1760110600083,1.9536369,1217.4,1211.1,0.20122733]
[1760110600381,1.9536369,1217.4,1211.2,0.54208043]
[1760110600685,1.9536369,1217.0,1211.3,0.54195701]
[1760110600885,1.9536369,1217.5,1211.4,0.54195701]
[1760110601185,1.9536369,1217.7,1211.5,0.54195701]
[1760110601382,1.9536369,1217.7,1211.6,0.54195701]
[1760110601682,1.9536369,1217.7,1211.0,0.60387684]
[1760110601881,1.9536369,1217.6,1211.2,0.20105448]
[1760110602086,1.9536369,1217.6,1211.3,0.5416262]
[1760110602380,6.2516383,1221.4,1211.7,0.20105448]
[1760110602381,1.9536369,1217.7,1211.7,0.20105448]
[1760110602582,1.9536369,1217.5,1211.8,1.14550304]
[1760110602781,1.9536369,1217.5,1211.9,0.5416262]
[1760110603085,2.7350917,1218.0,1212.0,0.74264316]
[1760110603282,2.7350917,1218.0,1212.1,0.5416262]
[1760110603580,1.9536369,1217.2,1212.2,0.5416262]
[1760110603781,1.9536369,1217.2,1212.3,0.5416262]
[1760110603981,2.7350917,1217.6,1212.4,0.5416262]
[1760110604181,1.9536369,1218.5,1212.5,0.5416262]
[1760110604385,1.9536369,1218.1,1212.8,0.60387684]
[1760110604586,1.9536369,1218.1,1212.9,0.5416262]
[1760110604787,2.7350917,1218.5,1213.0,0.5416262]
[1760110604984,2.7350917,1218.5,1212.0,1.19869]
[1760110604985,2.7350917,1218.5,1213.1,0.5416262]
[1760110605183,1.9536369,1218.9,1213.2,0.5416262]
[1760110605386,1.9536369,1218.9,1213.3,0.5416262]
[1760110605582,1.9536369,1218.9,1213.0,0.60387684]
[1760110605583,1.9536369,1219.2,1213.4,0.5416262]
[1760110605785,1.9536369,1219.2,1213.5,0.5416262]
[1760110605982,1.9536369,1219.2,1212.7,0.60387684]
[1760110606183,1.9536369,1218.5,1212.8,1.34770195]
[1760110606483,1.9536369,1218.5,1212.9,0.54247544]
[1760110606684,1.9536369,1218.5,1213.0,0.54247544]
[1760110606888,1.9536369,1218.5,1213.1,0.54247544]
[1760110607086,1.9536369,1218.5,1212.6,0.60387684]
[1760110607288,1.9536369,1218.8,1212.7,0.74403725]
[1760110607485,1.9536369,1218.8,1212.8,0.54265825]
[1760110607784,1.9536369,1217.5,1212.2,0.60387684]
[1760110607985,1.9536369,1217.5,1212.3,0.54279977]
[1760110608187,1.9536369,1218.0,1212.4,0.54279977]
[1760110608385,1.9536369,1218.0,1212.5,0.54279977]
[1760110608586,1.9536369,1218.1,1212.6,0.54279977]
[1760110608785,1.9536369,1218.1,1212.1,0.60387684]
[1760110608990,1.9536369,1217.9,1212.2,0.542718]
[1760110609185,1.9536369,1217.9,1212.3,0.542718]
[1760110609386,1.9536369,1217.9,1212.4,0.542718]
[1760110609585,1.9536369,1217.8,1212.5,0.542718]
[1760110609790,1.9536369,1217.8,1211.7,0.60387684]
[1760110609988,1.9536369,1217.8,1211.9,0.60387684]
[1760110610189,1.9536369,1217.8,1212.0,1.14674156]
[1760110610486,1.9536369,1217.7,1212.5,0.60387684]
[1760110610793,1.9536369,1218.7,1212.8,0.60387684]
[1760110610986,1.9536369,1218.7,1212.9,0.74435608]
[1760110611188,1.9536369,1218.7,1213.1,0.60387684]
[1760110611386,1.9536369,1218.8,1213.2,1.14674156]
[1760110611586,1.9536369,1218.8,1213.3,0.54286472]
[1760110611890,1.9536369,1219.0,1213.4,1.34801015]
[1760110612188,1.9536369,1219.0,1213.5,0.54286472]
[1760110612387,1.9536369,1219.5,1213.6,1.34798288]
[1760110612591,1.9536369,1219.5,1213.7,1.14674156]
[1760110612888,1.9536369,1219.8,1213.8,0.7440872]
[1760110613089,1.9536369,1219.8,1213.9,0.54286472]
[1760110613285,1.9536369,1220.0,1214.0,0.54286472]
[1760110613489,1.9536369,1220.0,1214.1,0.54286472]
[1760110613692,1.9536369,1219.7,1214.2,0.54286472]
[1760110613991,1.9536369,1219.7,1214.3,0.54286472]
[1760110614195,2.7350917,1220.2,1214.4,0.54286472]
[1760110614389,2.7350917,1220.2,1214.5,0.54286472]
[1760110614591,2.7350917,1220.2,1214.6,0.54286472]
[1760110614889,1.9536369,1220.1,1213.9,0.60387684]
[1760110615093,1.9536369,1220.1,1214.0,0.54245006]
[1760110615293,1.9536369,1219.6,1214.1,0.54245006]
[1760110615590,1.9536369,1219.6,1214.2,0.54245006]
[1760110615794,1.9536369,1219.8,1214.3,0.54245006]
[1760110616092,1.9536369,1219.8,1213.7,0.60387684]
[1760110616293,1.9536369,1220.0,1213.8,0.54256569]
[1760110616494,1.9536369,1220.0,1213.9,0.54256569]
[1760110616692,1.9536369,1220.0,1213.7,0.60387684]
[1760110616693,1.9536369,1220.2,1214.0,0.54256569]
[1760110616890,1.9536369,1220.2,1214.1,0.54256569]
[1760110617093,1.9536369,1220.2,1214.2,0.54256569]
[1760110617292,1.9536369,1220.2,1214.3,0.54256569]
[1760110617492,1.9536369,1220.2,1213.6,0.60387684]
[1760110617695,1.9536369,1220.4,1213.7,0.54235647]
[1760110617893,1.9536369,1220.4,1213.8,0.54235647]
[1760110618098,1.9536369,1220.4,1213.9,0.54235647]
[1760110618396,1.9536369,1220.0,1214.0,0.54235647]
[1760110618593,1.9536369,1220.0,1214.1,0.54235647]
[1760110618797,1.9536369,1219.6,1213.1,0.60387684]
[1760110618993,1.9536369,1219.6,1213.4,0.60387684]
[1760110619192,1.9536369,1219.4,1213.5,1.14633649]
[1760110619394,1.9536369,1219.4,1213.6,0.54245965]
[1760110619598,1.9536369,1219.4,1213.7,0.54245965]
[1760110619897,4.6887286,1219.9,1213.8,0.54245965]
[1760110620098,1.9536369,1221.7,1215.2,0.60387684]
[1760110620296,1.9536369,1221.7,1215.3,0.54245965]
[1760110620498,1.9536369,1221.7,1214.7,0.60387684]
[1760110620701,1.9536369,1220.5,1214.8,0.54331947]
[1760110620898,1.9536369,1220.5,1214.9,0.54331947]
[1760110621198,1.9536369,1220.8,1215.0,0.54331947]
[1760110621498,1.9536369,1220.8,1214.4,0.60387684]
[1760110621695,1.9536369,1220.8,1214.5,0.74387806]
[1760110621897,1.9536369,1220.8,1214.6,0.54299087]
[1760110622096,1.9536369,1220.8,1214.7,0.54299087]
[1760110622299,1.9536369,1220.9,1214.1,0.60387684]
[1760110622497,1.9536369,1220.9,1214.2,0.54289559]
[1760110622699,1.9536369,1219.9,1214.3,0.54289559]
[1760110622897,1.9536369,1219.9,1213.5,0.60387684]
[1760110623096,1.9536369,1219.9,1213.6,0.74400974]
[1760110623297,1.9536369,1220.3,1213.9,0.60387684]
[1760110623503,1.9536369,1220.3,1214.0,0.5430615]
[1760110623698,1.9536369,1220.3,1214.1,0.5430615]
[1760110623895,1.9536369,1220.3,1213.7,0.60387684]
[1760110623896,1.9536369,1219.9,1213.5,0.60387684]
[1760110624101,1.9536369,1219.9,1213.6,0.7440286]
[1760110624303,1.9536369,1219.9,1213.7,0.54309449]
[1760110624498,1.9536369,1219.7,1213.8,0.54309449]
[1760110624804,1.9536369,1219.8,1213.9,0.54309449]
[1760110625001,1.9536369,1219.8,1213.5,0.60387684]
[1760110625002,1.9536369,1219.8,1214.0,0.54309449]
[1760110625202,1.9536369,1219.6,1214.1,0.54317556]
[1760110625400,1.9536369,1219.6,1213.4,0.60387684]
[1760110625601,2.7350917,1220.3,1213.5,1.3480585]
[1760110625602,1.9536369,1220.2,1213.5,1.3480585]
[1760110625803,1.9536369,1220.6,1213.7,0.60387684]
[1760110626100,1.9536369,1220.6,1213.8,0.54320483]
[1760110626406,1.9536369,1220.2,1213.9,0.54346144]
[1760110626600,1.9536369,1220.2,1214.0,0.54346144]
[1760110626804,1.9536369,1220.3,1214.1,0.54346144]
[1760110627005,1.9536369,1220.1,1214.2,0.54346144]
[1760110627304,1.9536369,1220.1,1214.3,0.54346144]
[1760110627505,4.6887286,1220.6,1214.4,0.54346144]
[1760110627804,1.9536369,1220.5,1214.5,0.54346144]
[1760110628006,1.9536369,1220.8,1214.6,0.54346144]
[1760110628207,1.9536369,1221.2,1214.7,0.74451261]
[1760110628504,1.9536369,1221.2,1214.8,0.54346144]
[1760110628705,1.9536369,1221.2,1214.7,0.80492801]
[1760110628706,2.7350917,1222.0,1214.9,0.74451261]
[1760110629002,2.7350917,1222.0,1215.0,0.54346144]
[1760110629202,2.7350917,1221.8,1215.2,0.20095786]
[1760110629405,2.7350917,1221.8,1215.3,0.54346144]
[1760110629602,2.7350917,1221.8,1215.4,0.54346144]
[1760110629803,1.9536369,1221.0,1215.5,0.54346144]
[1760110630105,1.9536369,1221.0,1215.3,0.60387684]
[1760110630106,2.7350917,1221.6,1215.6,0.54346144]
[1760110630405,2.7350917,1221.6,1215.7,0.54346144]
[1760110630602,2.7350917,1221.6,1215.8,0.54346144]
[1760110630906,1.9536369,1222.4,1215.9,0.54346144]
[1760110631106,1.9536369,1222.4,1215.2,0.60387684]
[1760110631306,1.9536369,1222.1,1215.4,0.20052058]
[1760110631605,1.9536369,1222.2,1215.5,1.14655297]
[1760110631805,1.9536369,1222.2,1215.7,0.20052058]
[1760110632007,1.9536369,1222.0,1215.8,0.54267613]
[1760110632206,1.9536369,1222.5,1215.9,0.54161045]
[1760110632502,1.9536369,1222.5,1216.0,0.54161045]
[1760110632801,1.9536369,1221.8,1216.1,0.54161045]
[1760110633002,1.9536369,1221.8,1215.3,0.60030668]
[1760110633206,1.9536369,1221.2,1215.4,0.54138517]
[1760110633405,1.9536369,1222.1,1215.5,0.54145886]
[1760110633605,1.9536369,1222.0,1215.6,0.54145886]
[1760110633802,1.9536369,1222.0,1215.7,0.54145886]
[1760110634004,1.9536369,1222.0,1215.8,0.54145886]
[1760110634209,1.9536369,1221.8,1215.9,0.54078311]
[1760110634408,6.2516383,1226.8,1216.0,0.54078311]
[1760110634409,1.9536369,1222.0,1216.0,0.54078311]
[1760110634607,1.9536369,1222.0,1215.5,0.60030668]
[1760110634806,1.9536369,1222.5,1215.8,0.8000561]
[1760110635109,1.9536369,1222.5,1215.9,0.54085444]
[1760110635308,1.9536369,1222.3,1216.0,0.54085444]
[1760110635507,1.9536369,1222.3,1215.5,0.60030668]
[1760110635809,1.9536369,1222.3,1215.9,0.79978585]
[1760110636011,1.9536369,1222.5,1216.0,0.54012973]
[1760110636208,1.9536369,1222.5,1216.3,0.19947917]
[1760110636406,1.9536369,1222.5,1216.4,0.54012973]
[1760110636610,0.1429434,1222.7,1216.3,0.19947917]
[1760110636912,0.1429434,1222.7,1215.6,0.60030668]
[1760110637208,0.1429434,1222.7,1216.2,0.19893945]
[1760110637610,0.1429434,1222.7,1215.5,0.60030668]
[1760110637611,2.0965803,1222.7,1215.5,0.60030668]
[1760110637807,2.0965803,1222.7,1215.8,0.19895267]
[1760110638006,2.0965803,1222.7,1214.6,1.19869]
[1760110638007,1.9536369,1222.4,1215.0,0.60030668]
[1760110638210,1.9536369,1222.4,1215.7,0.19881525]
[1760110638410,1.9536369,1222.4,1215.6,0.19881525]
[1760110638712,1.9536369,1222.4,1214.4,1.19869]
[1760110638713,1.9536369,1222.1,1215.4,0.19881525]
[1760110638906,1.9536369,1222.4,1215.5,0.538305]
[1760110639211,0.1429434,1222.7,1216.1,0.19881525]
[1760110639410,0.1429434,1222.7,1216.2,0.538305]
[1760110639608,0.1429434,1222.7,1216.3,0.73632028]
[1760110639810,0.1429434,1222.7,1216.4,0.53750503]
[1760110640007,0.1429434,1222.7,1216.8,0.19881525]
[1760110640206,0.1429434,1222.7,1216.0,0.60030668]
[1760110640407,0.1429434,1222.7,1216.8,0.19809792]
[1760110640610,0.1429434,1222.7,1215.8,0.60030668]
[1760110640808,0.1429434,1222.7,1216.5,0.19814044]
[1760110641008,0.1429434,1222.7,1216.4,0.19814044]
[1760110641407,0.1429434,1222.7,1216.6,0.19814044]
[1760110641609,0.1429434,1222.7,1215.6,0.60030668]
[1760110641910,0.1429434,1222.7,1216.4,0.19784686]
[1760110642116,0.1429434,1222.7,1215.4,0.60030668]
[1760110642312,0.1429434,1222.7,1216.0,0.19775844]
[1760110642508,0.1429434,1222.7,1215.9,0.19775844]
[1760110643012,1.9536369,1222.2,1214.8,0.60030668]
[1760110643211,1.9536369,1222.2,1215.6,0.19772749]
[1760110643411,1.9536369,1222.5,1215.5,0.19772749]
[1760110643614,1.9536369,1222.5,1214.5,0.60030668]
[1760110643911,1.9536369,1221.5,1215.1,0.19781075]
[1760110644112,1.9536369,1221.5,1215.0,0.19781075]
[1760110644314,2.7350917,1222.0,1215.0,0.19781075]
[1760110644613,2.7350917,1222.0,1215.3,0.19781075]
[1760110644808,1.9536369,1222.3,1215.3,0.19781075]
[1760110645113,1.9536369,1222.3,1215.4,0.19781075]
[1760110645314,1.9536369,1222.3,1214.2,0.60030668]
[1760110645514,1.9536369,1221.7,1215.0,0.19772531]
[1760110645917,1.9536369,1221.5,1213.8,0.60030668]
[1760110646112,1.9536369,1221.5,1214.7,0.19777151]
[1760110646611,4.6887286,1222.0,1214.8,0.19777151]
[1760110646813,1.9536369,1223.0,1214.8,0.19777151]
[1760110647013,1.9536369,1223.1,1215.2,0.19777151]
[1760110647211,1.9536369,1221.9,1215.2,0.19777151]
[1760110647614,1.9536369,1221.9,1215.4,0.19777151]
[1760110647812,1.9536369,1222.9,1215.4,0.19777151]
[1760110648016,0.14290583,1220.3,1215.7,0.19777151]
[1760110648415,1.9536369,1222.8,1215.7,0.19777151]
[1760110648618,1.9536369,1223.4,1216.2,0.19777151]
[1760110648816,1.9536369,1223.1,1216.2,0.19777151]
[1760110649117,1.9536369,1223.1,1216.5,0.19777151]
[1760110649518,1.9536369,1223.4,1216.5,0.19777151]
[1760110649717,1.9536369,1223.4,1216.7,0.19777151]
[1760110649718,0.14279999,1221.5,1216.7,0.19777151]
[1760110650022,1.9536369,1223.8,1215.5,0.60030668]
[1760110650217,0.14278944,1220.4,1216.5,0.19710328]
[1760110650620,1.9536369,1223.4,1216.5,0.19710328]
[1760110650823,0.14279471,1219.5,1216.4,0.19710328]
[1760110651020,1.9536369,1223.6,1216.3,0.19710328]
[1760110651321,0.14281552,1218.8,1215.2,0.60030668]
[1760110651519,0.14281552,1218.8,1216.3,0.19700908]
[1760110651720,1.9536369,1223.3,1216.2,0.19700908]
[1760110651917,0.14281698,1218.0,1216.1,0.19700908]
[1760110652117,1.9536369,1224.0,1216.1,0.19700908]
[1760110652318,1.9536369,1224.1,1216.1,0.19700908]
[1760110652521,0.14279559,1218.1,1216.7,0.19700908]
[1760110652721,1.9536369,1223.8,1216.7,0.19700908]
[1760110652918,0.14274844,1222.2,1216.7,0.19700908]
[1760110653223,0.14274844,1222.2,1216.8,0.19700908]
[1760110653417,0.14274844,1222.2,1215.6,0.60030668]
[1760110653618,0.14274844,1222.2,1216.8,0.19661786]
[1760110654122,0.14274844,1222.2,1216.9,0.19661786]
[1760110654320,0.14274844,1222.2,1215.5,0.60030668]
[1760110654522,0.14274844,1222.2,1216.2,0.19665148]
[1760110654922,0.14274844,1222.2,1216.3,0.53629392]
[1760110655220,0.14274844,1222.2,1216.8,0.19665148]
[1760110655623,0.14274844,1222.2,1215.9,0.60030668]
[1760110655624,0.14274844,1222.2,1217.1,0.19665148]
[1760110655822,0.14274844,1222.2,1215.8,0.60030668]
[1760110656024,0.14274844,1222.2,1216.6,0.19658043]
[1760110656322,0.14274844,1222.2,1215.3,0.60030668]
[1760110656527,0.14274844,1222.2,1216.5,0.19660565]
[1760110656728,0.14274844,1222.2,1215.2,0.60030668]
[1760110657027,0.14274844,1222.2,1216.2,0.19664975]
[1760110657427,0.14274844,1222.2,1216.4,0.19664975]
[1760110658022,0.14274844,1222.2,1216.3,0.19664975]
[1760110658425,0.14274844,1222.2,1216.2,0.19664975]
[1760110659025,0.14274844,1222.2,1216.6,0.19664975]
[1760110659427,0.14274844,1222.2,1216.5,0.19664975]
[1760110660326,0.14274844,1222.2,1215.4,0.60030668]
[1760110660530,0.14274844,1222.2,1216.3,0.19722521]
[1760110661232,0.14274844,1222.2,1216.4,0.19722521]
[1760110661732,0.14274844,1222.2,1216.5,0.19722521]
[1760110662531,0.14274844,1222.2,1216.6,0.19722521]
[1760110663030,0.14274844,1222.2,1216.5,0.19722521]
[1760110663729,0.14274844,1222.2,1216.4,0.19722521]
[1760110663929,0.14274844,1222.2,1215.4,0.60030668]
[1760110664127,0.14274844,1222.2,1215.5,0.54062024]
[1760110664329,0.14274844,1222.2,1216.2,0.19812566]
[1760110664528,0.14274844,1222.2,1216.3,0.54099194]
[1760110664730,0.14274844,1222.2,1216.7,0.19812566]
[1760110665132,0.14274844,1222.2,1216.8,0.54086192]
[1760110665429,0.14274844,1222.2,1217.1,0.19812566]
[1760110665629,0.14274844,1222.2,1216.0,0.80516912]
[1760110665630,0.14274844,1222.2,1216.2,0.60030668]
[1760110665831,0.14274844,1222.2,1216.9,0.19802779]
[1760110666229,0.14274844,1222.2,1216.8,0.19802779]
[1760110666929,0.14274844,1222.2,1217.0,0.19802779]
[1760110667131,0.14274844,1222.2,1217.0,0.73947541]
[1760110667331,0.14274844,1222.2,1217.2,0.19802779]
[1760110667930,0.14274844,1222.2,1217.1,0.19802779]
[1760110668133,0.14274844,1222.2,1217.2,0.5413717]
[1760110668332,0.14274844,1222.2,1216.5,0.60030668]
[1760110668535,0.14274844,1222.2,1217.0,0.19840025]
[1760110668732,0.14274844,1222.2,1216.8,0.19840025]
[1760110668934,0.14274844,1222.2,1216.7,0.19840025]
[1760110669432,0.14274844,1222.2,1216.8,0.54290361]
[1760110669636,0.14274844,1222.2,1216.7,0.19840025]
[1760110669832,0.14274844,1222.2,1216.3,0.60030668]
[1760110669833,0.14274844,1222.2,1217.0,0.19840025]
[1760110670036,0.14274844,1222.2,1217.1,0.54289569]
[1760110670233,0.14274844,1222.2,1217.2,0.54289569]
[1760110670435,0.14274844,1222.2,1215.7,0.60030668]
[1760110670632,0.14274844,1222.2,1216.1,0.1991496]
[1760110670835,0.14274844,1222.2,1215.3,0.80516912]
[1760110670836,0.14274844,1222.2,1216.0,0.1991496]
[1760110671037,0.14274844,1222.2,1216.1,0.54402375]
[1760110671235,0.14274844,1222.2,1216.2,0.54402375]
[1760110671534,0.14274844,1222.2,1216.3,0.54402375]
[1760110671834,0.14274844,1222.2,1216.4,0.54402375]
[1760110672038,0.14274844,1222.2,1216.5,0.54402375]
[1760110672335,0.14274844,1222.2,1215.8,0.60030668]
[1760110672538,1.9536369,1222.1,1216.2,0.19953823]
[1760110672733,1.9536369,1222.1,1216.0,0.60030668]
[1760110672933,1.9536369,1222.1,1216.1,0.54508341]
[1760110673136,1.9536369,1221.9,1216.2,0.54508341]
[1760110673434,1.9536369,1221.9,1216.3,0.54508341]
[1760110673636,1.9536369,1222.1,1216.4,0.54508341]
[1760110673838,1.9536369,1222.1,1216.5,0.54508341]
[1760110674035,0.14274844,1222.2,1216.0,0.60030668]
[1760110674235,0.14274844,1222.2,1216.2,0.19973366]
[1760110674440,0.14274844,1222.2,1216.3,0.54557003]
[1760110674637,0.14274844,1222.2,1216.4,0.54557003]
[1760110674837,0.14274844,1222.2,1216.5,0.54557003]
[1760110675040,0.14274844,1222.2,1215.6,0.60030668]
[1760110675238,0.14274844,1222.2,1216.0,0.19988088]
[1760110675538,0.14274844,1222.2,1216.1,0.54595506]
[1760110675740,0.14274844,1222.2,1216.2,0.54595506]
[1760110676035,0.14274844,1222.2,1216.3,0.74584266]
[1760110676238,0.14274844,1222.2,1216.4,0.54595871]
[1760110676437,0.14274844,1222.2,1216.5,0.54595871]
[1760110676637,1.9536369,1222.0,1215.7,0.60030668]
[1760110676837,1.9536369,1222.1,1216.0,0.20004451]
[1760110677038,1.9536369,1222.1,1216.1,1.14684736]
[1760110677238,1.9536369,1222.1,1216.2,1.14684736]
[1760110677439,1.9536369,1221.9,1216.3,1.34698301]
[1760110677742,1.9536369,1221.9,1216.4,0.54654068]
[1760110677941,1.9536369,1221.8,1216.5,0.54654068]
[1760110678142,1.9536369,1221.8,1216.6,0.54744688]
[1760110678343,1.9536369,1221.8,1216.1,0.60030668]
[1760110678643,1.9536369,1221.7,1216.2,0.54752105]
[1760110678840,1.9536369,1221.7,1216.3,0.54752105]
[1760110679040,2.87784014,1222.2,1216.4,0.54752105]
[1760110679243,0.14274844,1222.2,1216.5,0.54752105]
[1760110679443,0.14274844,1222.2,1216.6,0.54752105]
[1760110679743,1.9536369,1222.1,1216.1,0.60030668]
[1760110679941,1.9536369,1222.1,1216.2,1.14858788]
[1760110680143,1.9536369,1221.7,1216.3,0.5482812]
[1760110680342,1.9536369,1221.7,1216.2,0.60030668]
[1760110680343,1.9536369,1221.7,1216.4,0.5482812]
[1760110680544,1.9536369,1221.5,1215.8,0.60030668]
[1760110680745,1.9536369,1221.3,1216.0,0.60030668]
[1760110680943,1.9536369,1221.3,1216.1,1.14946343]
[1760110681146,1.9536369,1221.8,1216.2,1.14946343]
[1760110681346,1.9536369,1222.1,1216.4,0.60030668]
[1760110681541,1.9536369,1221.8,1216.6,0.60030668]
[1760110681742,1.9536369,1221.8,1216.7,0.54915675]
[1760110681945,0.14274844,1222.2,1216.8,0.54915675]
[1760110682141,0.14274844,1222.2,1216.9,0.54915675]
[1760110682342,0.14274844,1222.2,1217.0,0.54915675]
[1760110682541,0.14274844,1222.2,1217.1,0.54915675]
[1760110682743,0.14274844,1222.2,1217.2,0.54915675]
[1760110683048,0.14274844,1222.2,1217.3,0.54915675]
[1760110683341,0.14274844,1222.2,1217.4,0.54915675]
[1760110683643,0.14274844,1222.2,1216.8,0.80516912]
[1760110683644,0.14274844,1222.2,1217.5,0.54915675]
[1760110683843,0.14274844,1222.2,1217.6,0.54915675]
[1760110684042,0.14274844,1222.2,1217.7,0.54915675]
[1760110684246,0.14274844,1222.2,1217.8,0.54915675]
[1760110684545,0.14274844,1222.2,1217.9,0.54915675]
[1760110684742,0.14274844,1222.2,1217.4,0.60030668]
[1760110684947,0.14274844,1222.2,1217.5,0.55045415]
[1760110685148,0.14274844,1222.2,1217.2,0.60030668]
[1760110685447,0.14274844,1222.2,1217.3,0.55149445]
[1760110685645,0.14274844,1222.2,1216.7,0.60030668]
[1760110685846,1.9536369,1221.6,1216.9,0.60030668]
[1760110686047,0.14274844,1222.2,1217.0,0.55159487]
[1760110686248,0.14274844,1222.2,1217.3,0.60030668]
[1760110686448,0.14274844,1222.2,1217.4,0.55159487]
[1760110686748,1.9536369,1221.8,1217.5,0.55159487]
[1760110686949,1.9536369,1221.8,1217.6,0.55159487]
[1760110687144,2.09638534,1222.2,1217.7,0.55159487]
[1760110687350,2.09638534,1222.2,1217.8,0.55159487]
[1760110687550,0.14274844,1222.2,1217.2,0.60030668]
[1760110687849,0.14274844,1222.2,1217.3,1.15364175]
[1760110688047,1.9536369,1221.8,1217.4,0.55333507]
[1760110688248,1.9536369,1221.8,1217.5,0.55333507]
[1760110688451,1.9536369,1221.8,1217.6,0.55333507]
[1760110688752,2.7350917,1222.1,1216.9,0.60030668]
[1760110689051,2.7350917,1222.1,1217.0,0.55402878]
[1760110689254,2.7350917,1222.1,1216.1,0.60030668]
[1760110689452,0.14274844,1222.2,1216.2,1.15516291]
[1760110689453,2.7350917,1221.3,1216.2,1.15516291]
[1760110689652,1.9536369,1220.9,1216.3,0.55485623]
[1760110689948,1.9536369,1220.9,1216.4,0.55485623]
[1760110690154,1.9536369,1220.4,1216.5,0.55485623]
[1760110690353,1.9536369,1220.2,1216.6,0.55485623]
[1760110690555,1.9536369,1220.5,1216.7,0.55485623]
[1760110690855,1.9536369,1220.7,1216.8,1.15516291]
[1760110691049,1.9536369,1220.7,1216.9,0.55485623]
[1760110691254,1.9536369,1220.7,1217.0,0.55485623]
[1760110691454,2.7350917,1222.1,1217.1,1.15516291]
[1760110691653,2.7350917,1222.1,1217.2,0.55485623]
[1760110691954,1.9536369,1222.0,1217.3,0.55485623]
[1760110692154,2.7350917,1222.1,1217.4,0.55485623]
[1760110692354,0.14274844,1222.2,1217.5,0.55485623]
[1760110692654,0.14274844,1222.2,1217.6,0.55485623]
[1760110692850,0.14274844,1222.2,1217.7,0.55485623]
[1760110693050,0.14274844,1222.2,1217.8,0.55485623]
[1760110693254,0.14274844,1222.2,1217.9,0.55485623]
[1760110693550,0.14274844,1222.2,1218.0,0.55485623]
[1760110693753,0.14274844,1222.2,1217.6,0.60030668]
[1760110693754,0.14274844,1222.2,1218.1,0.55485623]
[1760110693950,1.9536369,1222.1,1217.6,0.60030668]
[1760110694256,1.9536369,1222.1,1217.7,0.55461003]
[1760110694456,1.9536369,1221.7,1217.8,0.55461003]
[1760110694656,1.9536369,1221.7,1217.9,0.55461003]
[1760110694858,1.9536369,1221.7,1216.9,0.60030668]
[1760110695055,1.9536369,1221.7,1217.0,1.15512901]
[1760110695259,1.9536369,1221.7,1217.1,0.55482233]
[1760110695459,2.09638534,1222.2,1217.2,0.55482233]
[1760110695659,2.09638534,1222.2,1217.3,0.55482233]
[1760110695959,1.9536369,1221.9,1217.4,1.15512901]
[1760110696256,0.14274844,1222.2,1217.5,0.55482233]
[1760110696257,1.9536369,1222.1,1217.5,0.55482233]
[1760110696456,1.9536369,1222.1,1217.6,0.55482233]
[1760110696656,1.9536369,1222.1,1217.7,0.55482233]
[1760110696858,0.14274844,1222.2,1217.8,0.55482233]
[1760110697059,0.14274844,1222.2,1217.9,0.55482233]
[1760110697262,0.14274844,1222.2,1218.0,0.55482233]
[1760110697462,0.14274844,1222.2,1218.1,0.55482233]
[1760110697760,0.14274844,1222.2,1217.6,0.60030668]
[1760110697961,0.14274844,1222.2,1217.7,0.55315685]
[1760110698158,0.14274844,1222.2,1217.8,0.55315685]
[1760110698362,0.14274844,1222.2,1217.9,0.55315685]
[1760110698666,0.14274844,1222.2,1218.0,0.55315685]
[1760110698860,0.14274844,1222.2,1218.1,0.55315685]
[1760110699061,0.14274844,1222.2,1218.2,0.55315685]
[1760110699365,0.14274844,1222.2,1218.3,0.55315685]
[1760110699559,0.14274844,1222.2,1217.7,0.60030668]
[1760110699761,0.14274844,1222.2,1217.8,0.55290206]
[1760110699965,0.14274844,1222.2,1217.9,0.55290206]
[1760110700265,0.14274844,1222.2,1218.0,0.55290206]
[1760110700463,0.14274844,1222.2,1218.1,0.55290206]
[1760110700663,0.14274844,1222.2,1218.2,0.55290206]
[1760110700863,0.14274844,1222.2,1218.3,0.55290206]
[1760110701065,0.14274844,1222.2,1218.4,0.55290206]
[1760110701264,0.14274844,1222.2,1218.5,0.55290206]
[1760110701462,0.14274844,1222.2,1218.6,0.55290206]
[1760110701663,0.14274844,1222.2,1218.0,0.60030668]
[1760110701862,0.14274844,1222.2,1218.1,0.55224636]
[1760110702068,0.14274844,1222.2,1218.2,0.55224636]
[1760110702366,0.14274844,1222.2,1217.7,0.60030668]
[1760110702565,0.14274844,1222.2,1217.8,0.55223979]
[1760110702764,0.14274844,1222.2,1217.9,0.55223979]
[1760110702968,0.14274844,1222.2,1217.4,0.60030668]
[1760110703170,0.14274844,1222.2,1217.5,0.55233754]
[1760110703365,0.14274844,1222.2,1217.6,0.55233754]
[1760110703569,0.14274844,1222.2,1217.7,0.55233754]
[1760110703769,1.9536369,1221.7,1217.3,0.60030668]
[1760110703966,1.9536369,1221.7,1217.4,0.55248792]